fUST/lending_fUST_20241107
["ID","MTS","AMOUNT","RATE_DAILY","PERIOD"]
[341513864,1730943049928,-500.0,0.00026265,2]
[341513865,1730943049937,-487.15238925,0.00026265,2]
[341513866,1730943049946,-18595.36,0.000263,14]
[341513867,1730943049955,-382.67,0.000263,14]
[341513868,1730943049964,-693.31,0.00026301,2]
[341513869,1730943049973,-735.56,0.00026301,2]
[341513870,1730943049982,-500.0,0.00026315,2]
[341513871,1730943049992,-500.0,0.00026315,2]
[341513872,1730943050001,-500.0,0.00026315,2]
[341513873,1730943050011,-628.42,0.00026315,2]
[341513874,1730943050020,-3474.32,0.00026334,2]
[341513875,1730943050029,-710.41,0.00026334,2]
[341513876,1730943050038,-500.0,0.00026334,2]
[341513877,1730943050047,-612.48,0.00026334,2]
[341513878,1730943050056,-207.83,0.00026353,2]
[341513879,1730943050066,-1635.99,0.00026353,2]
[341513880,1730943050075,-500.0,0.00026353,2]
[341513881,1730943050085,-259.64,0.00026353,2]
[341513882,1730943050095,-500.0,0.00026371,2]
[341513883,1730943050104,-1522.31,0.00026371,2]
[341513884,1730943050114,-6579.98,0.00026402,2]
[341513885,1730943050124,-500.0,0.00026402,2]
[341513886,1730943050134,-500.0,0.00026402,2]
[341513887,1730943050143,-942.11,0.00026402,2]
[341513888,1730943050153,-500.0,0.00026481,2]
[341513889,1730943050162,-8262.19482367,0.00026506,2]
[341513890,1730943050171,-500.0,0.00026539,2]
[341513891,1730943050180,-500.0,0.00026539,2]
[341513892,1730943050189,-500.0,0.00026539,2]
[341513893,1730943050199,-666.12,0.00026539,2]
[341513894,1730943050209,-500.0,0.00026539,2]
[341513895,1730943050218,-500.0,0.00026539,2]
[341513896,1730943050227,-1237.65,0.00026539,2]
[341513897,1730943050237,-500.0,0.00026539,2]
[341513898,1730943050246,-598.31,0.00026539,2]
[341513899,1730943050255,-500.0,0.00026539,2]
[341513900,1730943050264,-500.0,0.00026539,2]
[341513901,1730943050274,-500.0,0.00026539,2]
[341513902,1730943050286,-500.0,0.00026539,2]
[341513903,1730943050295,-500.0,0.00026539,2]
[341513904,1730943050305,-500.0,0.00026539,2]
[341513905,1730943050314,-500.0,0.00026539,2]
[341513906,1730943050324,-500.0,0.00026539,2]
[341513907,1730943050335,-500.0,0.00026539,2]
[341513908,1730943050344,-500.0,0.00026539,2]
[341513909,1730943050353,-152.75393887,0.00026539,2]
[341513910,1730943050362,-162.24666009,0.00026539,2]
[341513911,1730943050373,-693.31,0.00026575,2]
[341513912,1730943050382,-735.56,0.00026575,2]
[341513913,1730943050391,-500.0,0.00026589,2]
[341513914,1730943050401,-500.0,0.00026589,2]
[341513915,1730943050410,-500.0,0.00026589,2]
[341513916,1730943050419,-628.42,0.00026589,2]
[341513917,1730943050428,-3474.32,0.00026608,2]
[341513918,1730943050438,-710.41,0.00026608,2]
[341513919,1730943050447,-158.061433,0.00026608,7]
[341513920,1730943050456,-158.061433,0.00026608,7]
[341513921,1730943050467,-500.0,0.00026608,2]
[341513922,1730943050476,-612.48,0.00026608,2]
[341513923,1730943050485,-1635.99,0.00026627,2]
[341513924,1730943050494,-500.0,0.00026627,2]
[341513925,1730943050503,-3773.39917829,0.00026627,2]
[341513926,1730943050545,-539.06967953,0.00022739,2]
[341513927,1730943050554,-2885.90845537,0.00025479,2]
[341513928,1730943142029,164.915281,0.00013973,2]
[341513930,1730943232787,286.4,0.00032629,120]
[341513935,1730943340704,1926.92979451,0.00032601,120]
[341513936,1730943395260,1169.27083333,0.0002083,2]
[341513949,1730943660649,200.6059589,0.00020588,2]
[341513950,1730943799370,163.599838,0.00013973,2]
[341513953,1730943900867,1562.364809,0.00020391,2]
[341513954,1730943924693,444.155285,0.00019957,2]
[341513955,1730943958949,5772.2460145,0.00019984,2]
[341513956,1730944006327,1169.27083333,0.0002083,2]
[341514012,1730944203138,1000.0,0.00032592,30]
[341514033,1730944232471,-500.0,0.00020915,2]
[341514034,1730944232481,-169.150049,0.00020916,2]
[341514035,1730944232490,-93.30176266,0.00020998,2]
[341514039,1730944238755,-206.69823734,0.00020998,2]
[341514040,1730944238765,-29287.47766304,0.00020998,2]
[341514041,1730944238780,-4008.4854774,0.00020999,2]
[341514042,1730944238789,-1962.72,0.00021,2]
[341514043,1730944238799,-500.0,0.0002102,2]
[341514044,1730944238807,-169.150049,0.0002102,2]
[341514045,1730944238817,-657.77217563,0.00021076,2]
[341514046,1730944238826,-1562.364809,0.00021076,2]
[341514047,1730944238836,-176.6595,0.00021708,2]
[341514048,1730944238845,-1562.364809,0.00021761,2]
[341514049,1730944238854,-1000.0,0.00021807,2]
[341514050,1730944238863,-232.95339406,0.00021817,2]
[341514051,1730944238874,-500.0,0.00021906,2]
[341514052,1730944238883,-312.28350884,0.00021906,2]
[341514053,1730944238892,-300.0,0.00021906,2]
[341514054,1730944238902,-500.0,0.00021906,2]
[341514055,1730944238912,-462.51556252,0.00021906,2]
[341514056,1730944238921,-192.11376293,0.00021906,2]
[341514057,1730944238930,-500.0,0.00021906,2]
[341514058,1730944238940,-782.16,0.00021907,3]
[341514059,1730944238950,-187.44606906,0.00021916,2]
[341514060,1730944238960,-170.76163314,0.00021916,2]
[341514061,1730944238969,-571.16496628,0.00021916,2]
[341514062,1730944238978,-363.80931632,0.00021916,2]
[341514063,1730944238987,-527.23955484,0.00021917,2]
[341514064,1730944238996,-500.0,0.00021917,2]
[341514065,1730944239004,-500.0,0.00021917,2]
[341514066,1730944239013,-500.0,0.00021917,2]
[341514068,1730944239026,-500.0,0.00021917,2]
[341514070,1730944239035,-507.01315093,0.00021917,2]
[341514072,1730944239044,-500.0,0.00021917,2]
[341514073,1730944239053,-503.40117957,0.00021917,2]
[341514075,1730944239063,-518.17741407,0.00021917,2]
[341514077,1730944239072,-500.0,0.00021917,2]
[341514079,1730944239081,-500.0,0.00021917,2]
[341514080,1730944239090,-502.46714549,0.00021917,2]
[341514081,1730944239099,-511.95555843,0.00021917,2]
[341514082,1730944239109,-501.90690518,0.00021917,2]
[341514083,1730944239118,-500.0,0.00021917,2]
[341514085,1730944239127,-512.25516908,0.00021917,2]
[341514086,1730944239136,-500.0,0.00021917,2]
[341514087,1730944239146,-500.0,0.00021917,2]
[341514088,1730944239156,-503.7106226,0.00021917,2]
[341514089,1730944239165,-502.64844348,0.00021917,2]
[341514090,1730944239174,-523.59340988,0.00021917,2]
[341514091,1730944239183,-500.0,0.00021917,2]
[341514092,1730944239192,-210.74942566,0.00021917,2]
[341514093,1730944239201,-500.0,0.00021917,2]
[341514094,1730944239210,-500.0,0.00021917,2]
[341514095,1730944239221,-500.0,0.00021917,2]
[341514097,1730944239230,-500.0,0.00021917,2]
[341514098,1730944239239,-500.0,0.00021917,2]
[341514099,1730944239248,-500.0,0.00021917,2]
[341514100,1730944239257,-500.0,0.00021917,2]
[341514101,1730944239266,-500.0,0.00021917,2]
[341514102,1730944239278,-625.56266215,0.00021917,2]
[341514103,1730944239287,-500.0,0.00021917,2]
[341514104,1730944239296,-500.0,0.00021917,2]
[341514105,1730944239305,-500.0,0.00021917,2]
[341514106,1730944239315,-500.0,0.00021917,2]
[341514107,1730944239324,-500.0,0.00021917,2]
[341514108,1730944239333,-500.0,0.00021917,2]
[341514109,1730944239343,-502.33798598,0.00021917,2]
[341514110,1730944239352,-500.0,0.00021917,2]
[341514111,1730944239362,-500.0,0.00021917,2]
[341514112,1730944239371,-508.99435237,0.00021917,2]
[341514113,1730944239380,-500.0,0.00021917,2]
[341514114,1730944239390,-509.7479048,0.00021917,2]
[341514115,1730944239400,-500.0,0.00021917,2]
[341514116,1730944239410,-500.0,0.00021917,2]
[341514117,1730944239419,-500.0,0.00021917,2]
[341514118,1730944239429,-623.09141814,0.00021917,2]
[341514119,1730944239438,-508.97520588,0.00021917,2]
[341514120,1730944239447,-504.19960054,0.00021917,2]
[341514121,1730944239456,-531.72093276,0.00021917,2]
[341514122,1730944239466,-500.0,0.00021917,2]
[341514123,1730944239475,-507.04141772,0.00021917,2]
[341514124,1730944239484,-213.93645056,0.00021917,2]
[341514125,1730944239493,-500.0,0.00021917,2]
[341514126,1730944239502,-504.00768637,0.00021917,2]
[341514127,1730944239511,-505.48850857,0.00021917,2]
[341514128,1730944239521,-500.0,0.00021917,2]
[341514129,1730944239531,-503.85581947,0.00021917,2]
[341514130,1730944239541,-500.0,0.00021917,2]
[341514131,1730944239551,-500.0,0.00021917,2]
[341514132,1730944239561,-500.0,0.00021917,2]
[341514133,1730944239571,-500.0,0.00021917,2]
[341514134,1730944239579,-500.0,0.00021917,2]
[341514135,1730944239589,-500.0,0.00021917,2]
[341514136,1730944239598,-509.72984009,0.00021917,2]
[341514137,1730944239607,-500.0,0.00021917,2]
[341514138,1730944239616,-500.0,0.00021917,2]
[341514139,1730944239625,-500.0,0.00021917,2]
[341514140,1730944239635,-500.0,0.00021917,2]
[341514141,1730944239645,-500.0,0.00021917,2]
[341514142,1730944239655,-500.0,0.00021917,2]
[341514143,1730944239665,-500.0,0.00021917,2]
[341514144,1730944239674,-506.6311765,0.00021917,2]
[341514145,1730944239684,-522.65278941,0.00021917,2]
[341514146,1730944239694,-500.0,0.00021917,2]
[341514147,1730944239703,-527.15317393,0.00021917,2]
[341514148,1730944239713,-582.41717469,0.00021917,2]
[341514149,1730944239726,-500.0,0.00021917,2]
[341514150,1730944239735,-500.0,0.00021917,2]
[341514151,1730944239744,-500.0,0.00021917,2]
[341514152,1730944239754,-500.0,0.00021917,2]
[341514153,1730944239764,-509.02989885,0.00021917,2]
[341514155,1730944239776,-500.0,0.00021917,2]
[341514156,1730944239787,-516.63517408,0.00021917,2]
[341514158,1730944239797,-500.0,0.00021917,2]
[341514160,1730944239806,-510.58865621,0.00021917,2]
[341514162,1730944239816,-511.3535218,0.00021917,2]
[341514163,1730944239826,-501.8308684,0.00021917,2]
[341514164,1730944239836,-508.29938669,0.00021917,2]
[341514166,1730944239846,-500.0,0.00021917,2]
[341514167,1730944239857,-500.0,0.00021917,2]
[341514168,1730944239866,-563.27462623,0.00021917,2]
[341514169,1730944239875,-500.0,0.00021917,2]
[341514170,1730944239884,-507.9008036,0.00021917,2]
[341514171,1730944239894,-507.30735118,0.00021917,2]
[341514172,1730944239903,-503.29766629,0.00021917,2]
[341514173,1730944239913,-507.9379069,0.00021917,2]
[341514174,1730944239922,-511.1353659,0.00021917,2]
[341514175,1730944239931,-500.0,0.00021917,2]
[341514176,1730944239940,-500.0,0.00021917,2]
[341514177,1730944239949,-505.87490031,0.00021917,2]
[341514178,1730944239959,-500.0,0.00021917,2]
[341514179,1730944239968,-1001.54328556,0.00021917,5]
[341514180,1730944239977,-500.0,0.00021917,2]
[341514181,1730944239987,-642.70232455,0.00021917,2]
[341514183,1730944239996,-523.2412354,0.00021917,2]
[341514184,1730944240005,-500.0,0.00021917,2]
[341514185,1730944240014,-500.0,0.00021917,2]
[341514186,1730944240025,-613.27152744,0.00021917,2]
[341514188,1730944240034,-628.48552683,0.00021917,2]
[341514190,1730944240043,-500.0,0.00021917,2]
[341514191,1730944240053,-500.0,0.00021917,2]
[341514192,1730944240062,-193.34378596,0.00021917,2]
[341514193,1730944240071,-500.0,0.00021917,2]
[341514194,1730944240081,-514.13037122,0.00021917,2]
[341514195,1730944240090,-500.0,0.00021917,2]
[341514196,1730944240099,-509.67243238,0.00021917,2]
[341514197,1730944240109,-506.31834723,0.00021917,2]
[341514198,1730944240119,-500.0,0.00021917,2]
[341514199,1730944240129,-500.0,0.00021917,2]
[341514200,1730944240138,-500.0,0.00021917,2]
[341514201,1730944240148,-500.0,0.00021917,2]
[341514202,1730944240157,-500.0,0.00021917,2]
[341514203,1730944240167,-500.0,0.00021917,2]
[341514204,1730944240177,-505.32283565,0.00021917,2]
[341514205,1730944240186,-406.35887884,0.00021917,2]
[341514206,1730944240197,-500.0,0.00021917,2]
[341514207,1730944240207,-588.30908396,0.00021917,2]
[341514209,1730944240216,-500.0,0.00021917,2]
[341514210,1730944240226,-500.0,0.00021917,2]
[341514211,1730944240235,-508.12538464,0.00021917,2]
[341514212,1730944240244,-506.61580928,0.00021917,2]
[341514213,1730944240253,-500.0,0.00021917,2]
[341514214,1730944240262,-557.27273208,0.00021917,2]
[341514215,1730944240273,-500.0,0.00021917,2]
[341514216,1730944240282,-539.76231879,0.00021917,2]
[341514217,1730944240291,-421.0308802,0.00021917,2]
[341514218,1730944240300,-500.0,0.00021917,2]
[341514219,1730944240310,-503.9681728,0.00021917,2]
[341514220,1730944240320,-500.0,0.00021917,2]
[341514221,1730944240330,-506.22243067,0.00021917,2]
[341514222,1730944240339,-500.0,0.00021917,2]
[341514223,1730944240348,-500.0,0.00021917,2]
[341514225,1730944240431,-519.14136329,0.00021917,2]
[341514226,1730944240440,-500.0,0.00021917,2]
[341514227,1730944240449,-500.0,0.00021917,2]
[341514228,1730944240458,-503.76157219,0.00021917,2]
[341514229,1730944240467,-500.0,0.00021917,2]
[341514230,1730944240476,-500.0,0.00021917,2]
[341514231,1730944240487,-514.11349825,0.00021917,2]
[341514232,1730944240496,-542.6260781,0.00021917,2]
[341514233,1730944240505,-545.47408998,0.00021917,2]
[341514234,1730944240514,-500.0,0.00021917,2]
[341514235,1730944240524,-500.0,0.00021917,2]
[341514236,1730944240534,-502.9324309,0.00021917,2]
[341514237,1730944240543,-523.15361655,0.00021917,2]
[341514238,1730944240553,-510.78710424,0.00021917,2]
[341514239,1730944240562,-502.36621833,0.00021917,2]
[341514240,1730944240571,-502.66119649,0.00021917,2]
[341514241,1730944240581,-513.8902187,0.00021917,2]
[341514242,1730944240590,-502.48625331,0.00021917,2]
[341514243,1730944240599,-500.0,0.00021917,2]
[341514244,1730944240609,-501.70805897,0.00021917,2]
[341514245,1730944240618,-405.38171283,0.00021917,2]
[341514246,1730944240627,-314.13048532,0.00021917,2]
[341514247,1730944240636,-512.85957421,0.00021917,2]
[341514248,1730944240648,-500.0,0.00021917,2]
[341514249,1730944240658,-500.0,0.00021917,2]
[341514250,1730944240667,-1000.0,0.00021917,2]
[341514251,1730944240676,-500.0,0.00021917,2]
[341514252,1730944240685,-503.33278021,0.00021917,2]
[341514253,1730944240696,-500.0,0.00021917,2]
[341514254,1730944240705,-171.28157724,0.00021917,2]
[341514255,1730944240714,-500.0,0.00021917,2]
[341514256,1730944240724,-500.0,0.00021917,2]
[341514257,1730944240733,-500.0,0.00021917,2]
[341514258,1730944240742,-916.98,0.00021917,2]
[341514259,1730944240751,-500.0,0.00021917,2]
[341514260,1730944240761,-516.71867932,0.00021917,2]
[341514261,1730944240771,-500.0,0.00021917,2]
[341514262,1730944240780,-500.0,0.00021917,2]
[341514263,1730944240789,-500.0,0.00021917,2]
[341514264,1730944240798,-514.20642021,0.00021917,2]
[341514265,1730944240808,-500.0,0.00021917,2]
[341514266,1730944240817,-227.43041355,0.00021917,2]
[341514267,1730944240826,-500.0,0.00021917,2]
[341514268,1730944240836,-500.0,0.00021917,2]
[341514269,1730944240845,-500.0,0.00021917,2]
[341514270,1730944240854,-501.53717914,0.00021917,2]
[341514271,1730944240863,-500.0,0.00021917,2]
[341514272,1730944240872,-500.0,0.00021917,2]
[341514273,1730944240881,-500.36126606,0.00021917,2]
[341514274,1730944240890,-500.0,0.00021917,2]
[341514275,1730944240899,-500.0,0.00021917,2]
[341514276,1730944240909,-427.57608142,0.00021917,2]
[341514277,1730944240918,-500.0,0.00021917,2]
[341514278,1730944240927,-506.15648978,0.00021917,2]
[341514279,1730944240936,-500.0,0.00021917,2]
[341514280,1730944240945,-500.0,0.00021917,2]
[341514281,1730944240954,-500.0,0.00021917,2]
[341514282,1730944240963,-500.0,0.00021917,2]
[341514283,1730944240972,-180.02612635,0.00021917,2]
[341514284,1730944240981,-500.0,0.00021917,2]
[341514285,1730944240990,-531.20600477,0.00021917,2]
[341514286,1730944241000,-500.0,0.00021917,2]
[341514287,1730944241010,-500.0,0.00021917,2]
[341514288,1730944241020,-500.0,0.00021917,2]
[341514289,1730944241030,-500.0,0.00021917,2]
[341514290,1730944241039,-501.61448281,0.00021917,2]
[341514291,1730944241048,-1776.45,0.00021917,2]
[341514292,1730944241058,-563.74351481,0.00021917,2]
[341514293,1730944241067,-500.0,0.00021917,2]
[341514294,1730944241076,-500.0,0.00021917,2]
[341514295,1730944241085,-500.0,0.00021917,2]
[341514296,1730944241094,-500.0,0.00021917,2]
[341514297,1730944241103,-500.0,0.00021917,2]
[341514298,1730944241112,-500.0,0.00021917,2]
[341514299,1730944241121,-341.66537686,0.00021917,2]
[341514300,1730944241130,-500.0,0.00021917,2]
[341514301,1730944241139,-500.0,0.00021917,2]
[341514302,1730944241148,-500.0,0.00021917,2]
[341514303,1730944241157,-433.88573396,0.00021917,2]
[341514304,1730944241167,-500.0,0.00021917,2]
[341514305,1730944241176,-500.0,0.00021917,2]
[341514306,1730944241185,-514.10797015,0.00021917,2]
[341514307,1730944241194,-500.0,0.00021917,2]
[341514308,1730944241203,-500.0,0.00021917,2]
[341514309,1730944241212,-500.0,0.00021917,2]
[341514310,1730944241221,-500.0,0.00021917,2]
[341514311,1730944241230,-500.0,0.00021917,2]
[341514312,1730944241239,-592.37852084,0.00021917,2]
[341514313,1730944241249,-500.0,0.00021917,2]
[341514314,1730944241257,-2.074964,0.00021917,2]
[341514315,1730944241278,-497.925036,0.00021917,2]
[341514316,1730944241288,-2367.53293655,0.00021917,2]
[341514317,1730944241298,-323.81791502,0.00021917,2]
[341514318,1730944241309,-130.20914843,0.00021917,2]
[341514319,1730944241318,-500.0,0.00021917,2]
[341514320,1730944241327,-462.07085157,0.00021917,2]
[341514321,1730944241543,-42.16940868,0.00021917,2]
[341514322,1730944241555,-685.34,0.00021917,2]
[341514323,1730944241564,-500.0,0.00021917,2]
[341514324,1730944241574,-507.13198181,0.00021917,2]
[341514325,1730944241584,-500.0,0.00021917,2]
[341514326,1730944241593,-500.0,0.00021917,2]
[341514327,1730944241603,-246.45860959,0.00021917,2]
[341514328,1730944241616,-253.54139041,0.00021917,2]
[341514329,1730944241627,-500.0,0.00021917,2]
[341514330,1730944241637,-500.0,0.00021917,2]
[341514331,1730944241651,-500.0,0.00021917,2]
[341514332,1730944241660,-500.0,0.00021917,2]
[341514333,1730944241669,-249.51728283,0.00021917,2]
[341514334,1730944241680,-522.54592741,0.00021917,2]
[341514335,1730944241692,-500.0,0.00021917,2]
[341514336,1730944241702,-507.81688621,0.00021917,2]
[341514337,1730944241712,-507.30680895,0.00021917,2]
[341514338,1730944241721,-500.0,0.00021917,2]
[341514339,1730944241732,-500.0,0.00021917,2]
[341514340,1730944241742,-500.0,0.00021917,2]
[341514341,1730944241751,-500.0,0.00021917,2]
[341514342,1730944241761,-500.0,0.00021917,2]
[341514343,1730944241771,-3121.66,0.00021917,2]
[341514344,1730944241780,-500.0,0.00021917,2]
[341514345,1730944241789,-500.0,0.00021917,2]
[341514346,1730944241797,-1794.03,0.00021917,2]
[341514347,1730944241806,-500.0,0.00021917,2]
[341514348,1730944241816,-501.363371,0.00021917,2]
[341514349,1730944241825,-881.18843953,0.00021917,2]
[341514350,1730944241836,-500.0,0.00021917,2]
[341514351,1730944241847,-507.09784398,0.00021917,2]
[341514352,1730944241856,-501.29417292,0.00021917,2]
[341514353,1730944241865,-500.0,0.00021917,2]
[341514354,1730944241875,-310.73865462,0.00021917,2]
[341514355,1730944241884,-500.0,0.00021917,2]
[341514356,1730944241893,-500.0,0.00021917,2]
[341514357,1730944241902,-540.3751073,0.00021917,2]
[341514358,1730944241911,-500.0,0.00021917,2]
[341514359,1730944241920,-500.0,0.00021917,2]
[341514360,1730944241929,-504.12365039,0.00021917,2]
[341514361,1730944241939,-500.0,0.00021917,2]
[341514362,1730944241948,-500.0,0.00021917,2]
[341514363,1730944241957,-500.0,0.00021917,2]
[341514364,1730944241966,-500.0,0.00021917,2]
[341514365,1730944241975,-500.0,0.00021917,2]
[341514366,1730944241984,-500.0,0.00021917,2]
[341514367,1730944241993,-502.27571752,0.00021917,2]
[341514368,1730944242003,-500.0,0.00021917,2]
[341514369,1730944242012,-500.0,0.00021917,2]
[341514370,1730944242023,-500.0,0.00021917,2]
[341514371,1730944242032,-504.20621905,0.00021917,2]
[341514372,1730944242112,-671.55579269,0.00021917,2]
[341514419,1730944244262,-1453.11420731,0.00021917,2]
[341514420,1730944244272,-500.0,0.00021917,2]
[341514421,1730944244283,-508.01376763,0.00021917,2]
[341514422,1730944244293,-509.88,0.00021917,2]
[341514423,1730944244304,-7143.54,0.00021917,2]
[341514424,1730944244314,-500.0,0.00021917,2]
[341514425,1730944244324,-512.67077031,0.00021917,2]
[341514426,1730944244335,-503.84107763,0.00021917,2]
[341514427,1730944244345,-500.0,0.00021917,2]
[341514428,1730944244356,-500.0,0.00021917,2]
[341514429,1730944244365,-504.80753273,0.00021917,2]
[341514430,1730944244376,-500.0,0.00021917,2]
[341514431,1730944244386,-500.0,0.00021917,2]
[341514432,1730944244395,-500.0,0.00021917,2]
[341514433,1730944244405,-506.03880022,0.00021917,2]
[341514434,1730944244415,-500.0,0.00021917,2]
[341514435,1730944244425,-500.0,0.00021917,2]
[341514436,1730944244435,-500.0,0.00021917,2]
[341514437,1730944244445,-500.0,0.00021917,2]
[341514438,1730944244455,-500.0,0.00021917,2]
[341514439,1730944244464,-500.0,0.00021917,2]
[341514440,1730944244473,-500.0,0.00021917,2]
[341514441,1730944244483,-500.0,0.00021917,2]
[341514442,1730944244493,-500.0,0.00021917,2]
[341514443,1730944244502,-506.98608532,0.00021917,2]
[341514444,1730944244514,-500.0,0.00021917,2]
[341514445,1730944244522,-500.0,0.00021917,2]
[341514446,1730944244532,-500.0,0.00021917,2]
[341514447,1730944244541,-500.0,0.00021917,2]
[341514448,1730944244550,-500.0,0.00021917,2]
[341514449,1730944244559,-500.0,0.00021917,2]
[341514450,1730944244568,-500.0,0.00021917,2]
[341514451,1730944244577,-500.0,0.00021917,2]
[341514452,1730944244586,-500.0,0.00021917,2]
[341514453,1730944244595,-504.99008416,0.00021917,2]
[341514454,1730944244604,-500.0,0.00021917,2]
[341514455,1730944244614,-500.0,0.00021917,2]
[341514456,1730944244623,-506.68341412,0.00021917,2]
[341514457,1730944244632,-500.0,0.00021917,2]
[341514458,1730944244641,-500.0,0.00021917,2]
[341514459,1730944244653,-500.0,0.00021917,2]
[341514460,1730944244663,-500.0,0.00021917,2]
[341514461,1730944244672,-500.0,0.00021917,2]
[341514463,1730944244681,-500.0,0.00021917,2]
[341514464,1730944244692,-500.0,0.00021917,2]
[341514465,1730944244700,-507.34683345,0.00021917,2]
[341514466,1730944244710,-486.41565898,0.00021917,2]
[341514467,1730944244720,-506.47391126,0.00021917,2]
[341514468,1730944244730,-500.0,0.00021917,2]
[341514469,1730944244740,-504.64647888,0.00021917,2]
[341514470,1730944244749,-606.75429969,0.00021917,2]
[341514471,1730944244758,-500.0,0.00021917,2]
[341514472,1730944244768,-539.76132891,0.00021917,2]
[341514473,1730944244779,-500.0,0.00021917,2]
[341514474,1730944244789,-500.0,0.00021917,2]
[341514475,1730944244798,-510.39089842,0.00021917,2]
[341514476,1730944244807,-500.0,0.00021917,2]
[341514477,1730944244817,-500.0,0.00021917,2]
[341514478,1730944244827,-509.48573876,0.00021917,2]
[341514479,1730944244836,-500.0,0.00021917,2]
[341514480,1730944244846,-500.0,0.00021917,2]
[341514481,1730944244855,-500.0,0.00021917,2]
[341514482,1730944244864,-500.0,0.00021917,2]
[341514483,1730944244873,-517.00269963,0.00021917,2]
[341514484,1730944244883,-504.6693279,0.00021917,2]
[341514485,1730944244892,-671.02,0.00021917,2]
[341514486,1730944244901,-504.26503445,0.00021917,2]
[341514487,1730944244910,-500.0,0.00021917,2]
[341514488,1730944244920,-500.0,0.00021917,2]
[341514489,1730944244930,-500.0,0.00021917,2]
[341514490,1730944244940,-15.96422205,0.00021917,2]
[341514491,1730944244954,-484.03577795,0.00021917,2]
[341514492,1730944244963,-500.0,0.00021917,2]
[341514493,1730944244972,-500.0,0.00021917,2]
[341514494,1730944244981,-500.0,0.00021917,2]
[341514495,1730944244991,-500.0,0.00021917,2]
[341514496,1730944245000,-151.0,0.00021917,2]
[341514497,1730944245010,-571.13815328,0.00021917,2]
[341514498,1730944245020,-500.0,0.00021917,2]
[341514499,1730944245030,-510.11048441,0.00021917,2]
[341514500,1730944245040,-500.0,0.00021917,2]
[341514501,1730944245050,-500.0,0.00021917,2]
[341514502,1730944245059,-500.0,0.00021917,2]
[341514503,1730944245069,-265.04293639,0.00021917,2]
[341514504,1730944245078,-500.0,0.00021917,2]
[341514505,1730944245087,-500.0,0.00021917,2]
[341514506,1730944245096,-453.19482339,0.00021917,2]
[341514507,1730944245105,-503.12227621,0.00021917,2]
[341514508,1730944245116,-500.0,0.00021917,2]
[341514509,1730944245125,-452.54155758,0.00021917,2]
[341514510,1730944245135,-509.69598863,0.00021917,2]
[341514511,1730944245144,-500.0,0.00021917,2]
[341514512,1730944245154,-500.0,0.00021917,2]
[341514513,1730944245164,-506.4931312,0.00021917,2]
[341514514,1730944245173,-200.0,0.00021917,2]
[341514515,1730944245182,-501.72847461,0.00021917,2]
[341514516,1730944245191,-501.99149255,0.00021917,2]
[341514517,1730944245201,-500.0,0.00021917,2]
[341514518,1730944245210,-500.0,0.00021917,2]
[341514519,1730944245219,-500.0,0.00021917,2]
[341514520,1730944245228,-286.8482065,0.00021917,2]
[341514521,1730944245237,-332.70707129,0.00021917,2]
[341514522,1730944245246,-500.0,0.00021917,2]
[341514523,1730944245255,-251.3406732,0.00021917,2]
[341514524,1730944245277,-248.6593268,0.00021917,2]
[341514525,1730944245287,-502.57141722,0.00021917,2]